fUST/lending_fUST_20250803
["ID","MTS","AMOUNT","RATE_DAILY","PERIOD"]
[376889971,1754153467758,-460.0,0.00026849,10]
[376889973,1754153467768,-460.0,0.00026849,10]
[376889974,1754153467777,-717.45,0.00026849,10]
[376889976,1754153467786,-460.0,0.00026849,10]
[376889978,1754153467795,-460.0,0.00026849,10]
[376889980,1754153467805,-589.84063856,0.00026849,10]
[376889982,1754153467815,-717.45,0.00026849,10]
[376889984,1754153467825,-717.45,0.00026849,10]
[376889985,1754153467835,-460.0,0.00026849,10]
[376889987,1754153467843,-460.0,0.00026849,10]
[376889989,1754153467853,-717.45,0.00026849,10]
[376889991,1754153467862,-460.0,0.00026849,10]
[376889993,1754153467871,-460.0,0.00026849,10]
[376889995,1754153467880,-717.45,0.00026849,10]
[376889997,1754153467890,-460.0,0.00026849,10]
[376889999,1754153467899,-450.86,0.00026849,10]
[376890001,1754153467908,-460.0,0.00026849,10]
[376890002,1754153467917,-717.45,0.00026849,10]
[376890004,1754153467927,-460.0,0.00026849,10]
[376890006,1754153467936,-717.45,0.00026849,10]
[376890008,1754153467945,-460.0,0.00026849,10]
[376890010,1754153467955,-460.0,0.00026849,10]
[376890012,1754153467964,-460.0,0.00026849,10]
[376890014,1754153467975,-460.0,0.00026849,10]
[376890016,1754153467984,-460.0,0.00026849,10]
[376890018,1754153467993,-717.45,0.00026849,10]
[376890020,1754153468002,-460.0,0.00026849,10]
[376890021,1754153468011,-717.52,0.00026849,10]
[376890023,1754153468021,-460.0,0.00026849,10]
[376890025,1754153468030,-460.0,0.00026849,10]
[376890027,1754153468039,-460.0,0.00026849,10]
[376890029,1754153468048,-460.0,0.00026849,10]
[376890031,1754153468058,-460.0,0.00026849,10]
[376890033,1754153468067,-460.0,0.00026849,10]
[376890035,1754153468076,-460.0,0.00026849,10]
[376890036,1754153468085,-460.0,0.00026849,10]
[376890038,1754153468095,-460.0,0.00026849,10]
[376890040,1754153468104,-460.0,0.00026849,10]
[376890042,1754153468114,-460.0,0.00026849,10]
[376890044,1754153468123,-460.0,0.00026849,10]
[376890046,1754153468132,-460.0,0.00026849,10]
[376890048,1754153468141,-460.0,0.00026849,10]
[376890050,1754153468150,-495.64,0.00026849,10]
[376890051,1754153468159,-460.0,0.00026849,10]
[376890053,1754153468171,-460.0,0.00026849,10]
[376890055,1754153468180,-460.0,0.00026849,10]
[376890057,1754153468189,-460.0,0.00026849,10]
[376890059,1754153468199,-460.0,0.00026849,10]
[376890061,1754153468208,-460.0,0.00026849,10]
[376890063,1754153468217,-460.0,0.00026849,10]
[376890065,1754153468229,-460.0,0.00026849,10]
[376890067,1754153468239,-460.0,0.00026849,10]
[376890069,1754153468248,-460.0,0.00026849,10]
[376890071,1754153468257,-460.0,0.00026849,10]
[376890073,1754153468267,-460.0,0.00026849,10]
[376890075,1754153468276,-460.0,0.00026849,10]
[376890076,1754153468286,-460.0,0.00026849,10]
[376890078,1754153468295,-460.0,0.00026849,10]
[376890080,1754153468303,-460.0,0.00026849,10]
[376890082,1754153468313,-460.0,0.00026849,10]
[376890084,1754153468322,-460.0,0.00026849,10]
[376890086,1754153468331,-460.0,0.00026849,10]
[376890088,1754153468340,-460.0,0.00026849,10]
[376890090,1754153468349,-460.0,0.00026849,10]
[376890092,1754153468358,-460.0,0.00026849,10]
[376890094,1754153468371,-460.0,0.00026849,10]
[376890096,1754153468381,-460.0,0.00026849,10]
[376890098,1754153468391,-596.68616697,0.00026849,10]
[376890099,1754153468400,-460.0,0.00026849,10]
[376890101,1754153468411,-460.0,0.00026849,10]
[376890103,1754153468420,-460.0,0.00026849,10]
[376890105,1754153468429,-460.0,0.00026849,10]
[376890107,1754153468439,-273.18,0.00026849,10]
[376890109,1754153468450,-190.98447161,0.00026849,10]
[376890111,1754153468459,-460.0,0.00026849,10]
[376890112,1754153468468,-460.0,0.00026849,10]
[376890114,1754153468479,-460.0,0.00026849,10]
[376890115,1754153468487,-461.8807633,0.00026849,10]
[376890117,1754153468496,-460.0,0.00026849,10]
[376890119,1754153468505,-461.97341244,0.00026849,10]
[376890121,1754153468515,-460.0,0.00026849,10]
[376890123,1754153468524,-460.0,0.00026849,10]
[376890124,1754153468533,-461.40684778,0.00026849,10]
[376890126,1754153468543,-460.0,0.00026849,10]
[376890128,1754153468552,-460.0,0.00026849,10]
[376890130,1754153468563,-460.0,0.00026849,10]
[376890132,1754153468572,-460.0,0.00026849,10]
[376890133,1754153468582,-460.0,0.00026849,10]
[376890134,1754153468591,-460.0,0.00026849,10]
[376890135,1754153468600,-460.0,0.00026849,10]
[376890137,1754153468609,-460.0,0.00026849,10]
[376890138,1754153468619,-198.92204423,0.00026849,10]
[376890139,1754153468629,-460.0,0.00026849,10]
[376890140,1754153468638,-460.0,0.00026849,10]
[376890141,1754153468647,-460.0,0.00026849,10]
[376890142,1754153468656,-460.0,0.00026849,10]
[376890143,1754153468665,-460.0,0.00026849,10]
[376890144,1754153468674,-460.0,0.00026849,10]
[376890145,1754153468683,-460.0,0.00026849,10]
[376890146,1754153468694,-460.0,0.00026849,10]
[376890147,1754153468703,-228.21420616,0.00026849,10]
[376890148,1754153468711,-460.0,0.00026849,10]
[376890149,1754153468720,-460.0,0.00026849,10]
[376890150,1754153468730,-460.0,0.00026849,10]
[376890151,1754153468738,-460.0,0.00026849,10]
[376890152,1754153468747,-462.16178516,0.00026849,10]
[376890153,1754153468756,-460.0,0.00026849,10]
[376890154,1754153468765,-466.62558258,0.00026849,10]
[376890155,1754153468775,-460.0,0.00026849,10]
[376890156,1754153468785,-6282.84,0.00026849,10]
[376890157,1754153468794,-6282.84,0.00026849,10]
[376890158,1754153468803,-460.0,0.00026849,10]
[376890159,1754153468812,-460.0,0.00026849,10]
[376890160,1754153468821,-460.0,0.00026849,10]
[376890161,1754153468830,-460.0,0.00026849,10]
[376890162,1754153468839,-462.35355455,0.00026849,10]
[376890163,1754153468848,-460.0,0.00026849,10]
[376890164,1754153468857,-6282.84,0.00026849,10]
[376890165,1754153468866,-6282.84,0.00026849,10]
[376890166,1754153468876,-460.0,0.00026849,10]
[376890167,1754153468885,-460.0,0.00026849,10]
[376890168,1754153468893,-460.0,0.00026849,10]
[376890169,1754153468987,-460.0,0.00026849,10]
[376890170,1754153468998,-460.0,0.00026849,10]
[376890171,1754153469008,-460.38213559,0.00026849,10]
[376890172,1754153469018,-330.77831337,0.00026849,10]
[376890173,1754153469071,-211.03168663,0.00026849,10]
[376890174,1754153469080,-118.34499868,0.00026849,10]
[376890175,1754153469164,-341.65500132,0.00026849,10]
[376890176,1754153469174,-541.81,0.00026849,10]
[376890177,1754153469182,-445.79,0.00026849,10]
[376890178,1754153469192,-541.81,0.00026849,10]
[376890179,1754153469200,-541.81,0.00026849,10]
[376890180,1754153469210,-541.81,0.00026849,10]
[376890181,1754153469221,-541.81,0.00026849,10]
[376890182,1754153469232,-290.80499873,0.00026849,10]
[376890183,1754153469244,-251.00500127,0.00026849,10]
[376890184,1754153469254,-541.81,0.00026849,10]
[376890185,1754153469263,-129.1472079,0.00026849,10]
[376890186,1754153469274,-412.6627921,0.00026849,10]
[376890187,1754153469284,-541.81,0.00026849,10]
[376890188,1754153469293,-151.0,0.00026849,7]
[376890189,1754153469302,-541.81,0.00026849,10]
[376890190,1754153469312,-6282.84,0.00026849,10]
[376890191,1754153469321,-460.0,0.00026849,10]
[376890192,1754153469331,-151.0,0.00026849,7]
[376890193,1754153469340,-6282.84,0.00026849,10]
[376890194,1754153469357,-460.0,0.00026849,10]
[376890195,1754153469372,-6282.84,0.00026849,10]
[376890196,1754153469381,-307.41900501,0.00026849,10]
[376890197,1754153469390,-6282.84,0.00026849,10]
[376890198,1754153469400,-6282.84,0.00026849,10]
[376890199,1754153469412,-151.0,0.00026849,7]
[376890200,1754153469431,-460.0,0.00026849,10]
[376890201,1754153469441,-6282.84,0.00026849,10]
[376890202,1754153469451,-460.0,0.00026849,10]
[376890203,1754153469460,-460.0,0.00026849,10]
[376890204,1754153469469,-151.0,0.00026849,7]
[376890205,1754153469480,-364.4576231,0.00026849,10]
[376890206,1754153469489,-460.0,0.00026849,10]
[376890207,1754153469498,-460.0,0.00026849,10]
[376890208,1754153469507,-151.0,0.00026849,7]
[376890209,1754153469517,-1842.57286876,0.00026849,10]
[376890210,1754153469624,-1346.63934089,0.00024273,2]
[376890211,1754153469636,-14964.61139484,0.00024273,2]
[376890212,1754153469646,-4440.26713124,0.00026849,10]
[376890213,1754153469655,-460.0,0.00026849,10]
[376890214,1754153469665,-460.0,0.00026849,10]
[376890215,1754153469674,-299.17178879,0.00026849,10]
[376890216,1754153469683,-541.81,0.00026849,10]
[376890217,1754153469692,-151.0,0.00026849,7]
[376890219,1754153469702,-460.0,0.00026849,10]
[376890221,1754153469711,-460.0,0.00026849,10]
[376890223,1754153469721,-6282.84,0.00026849,10]
[376890225,1754153469731,-541.81,0.00026849,10]
[376890227,1754153469741,-460.0,0.00026849,10]
[376890229,1754153469750,-6282.84,0.00026849,10]
[376890231,1754153469759,-151.0,0.00026849,7]
[376890233,1754153469769,-541.81,0.00026849,10]
[376890235,1754153469778,-460.0,0.00026849,10]
[376890237,1754153469788,-460.0,0.00026849,10]
[376890238,1754153469797,-541.81,0.00026849,10]
[376890240,1754153469806,-460.0,0.00026849,10]
[376890241,1754153469815,-460.0,0.00026849,10]
[376890243,1754153469826,-460.0,0.00026849,10]
[376890245,1754153469835,-151.0,0.00026849,7]
[376890247,1754153469844,-541.81,0.00026849,10]
[376890249,1754153469854,-596.76343289,0.00026849,10]
[376890250,1754153469867,-460.0,0.00026849,10]
[376890252,1754153469877,-541.81,0.00026849,10]
[376890254,1754153469887,-151.0,0.00026849,7]
[376890255,1754153469896,-460.0,0.00026849,10]
[376890257,1754153469905,-460.0,0.00026849,10]
[376890259,1754153469914,-460.0,0.00026849,10]
[376890260,1754153469924,-541.81,0.00026849,10]
[376890261,1754153469933,-460.0,0.00026849,10]
[376890263,1754153469943,-460.0,0.00026849,10]
[376890265,1754153469952,-460.0,0.00026849,10]
[376890267,1754153469961,-541.81,0.00026849,10]
[376890269,1754153469972,-460.0,0.00026849,10]
[376890271,1754153469982,-151.0,0.00026849,7]
[376890273,1754153469991,-460.0,0.00026849,10]
[376890275,1754153470001,-460.0,0.00026849,10]
[376890277,1754153470011,-460.0,0.00026849,10]
[376890279,1754153470020,-460.0,0.00026849,10]
[376890281,1754153470029,-460.0,0.00026849,10]
[376890283,1754153470039,-460.0,0.00026849,10]
[376890285,1754153470048,-151.0,0.00026849,7]
[376890287,1754153470056,-541.81,0.00026849,10]
[376890289,1754153470065,-285.9,0.00026849,10]
[376890291,1754153470074,-460.0,0.00026849,10]
[376890293,1754153470083,-460.0,0.00026849,10]
[376890295,1754153470092,-541.81,0.00026849,10]
[376890297,1754153470102,-460.0,0.00026849,10]
[376890299,1754153470111,-151.0,0.00026849,7]
[376890301,1754153470121,-541.81,0.00026849,10]
[376890303,1754153470130,-3810.69705224,0.00026849,10]
[376890306,1754153470145,-2409.40000002,0.00026849,10]
[376890313,1754153470208,-62.74294774,0.00026849,10]
[376890315,1754153470217,-52.46568589,0.00026849,10]
[376891170,1754153491089,200.0,0.00026386,120]
[376891174,1754153656482,166.527966,0.00013699,2]
[376891175,1754153851603,200.0,0.00026377,120]
[376891177,1754153912248,200.0,0.00026903,120]
[376891179,1754154151072,200.0,0.000264,120]
[376891182,1754154211747,200.0,0.00026395,120]
[376891183,1754154271382,200.0,0.0002634,120]
[376891184,1754154331123,-166.8917784,0.00023149,2]
[376891185,1754154331146,-454.9658173,0.00023776,2]
[376891186,1754154331171,-178.46137053,0.00023803,2]
[376891187,1754154391075,200.0,0.0002658,120]
[376891188,1754154453086,-421.53862947,0.00023803,2]
[376891189,1754154453109,-151.0,0.00023803,2]
[376891190,1754154453132,-520.31387424,0.00024082,2]
[376891191,1754154465925,531.0,0.00027397,120]
[376891195,1754154499256,500.0,0.00027397,120]
[376891196,1754154511057,200.0,0.00026889,120]
[376891234,1754154632728,-300.0,0.00023092,2]
[376891236,1754154632738,-300.0,0.00023092,2]
[376891238,1754154632748,-254.57783537,0.00023092,2]
[376891241,1754154632760,-566.7,0.00023092,2]
[376891249,1754154632832,-378.72216463,0.00023092,2]
[376891251,1754154632841,-300.0,0.00023092,2]
[376891253,1754154632850,-7328.39010892,0.00023093,2]
[376891316,1754154638645,-17571.60989108,0.00023093,2]
[376891317,1754154638654,-500.0,0.00023803,2]
[376891318,1754154638663,-310.167,0.00024091,5]
[376891319,1754154638672,-27433.56985723,0.00024092,2]
[376891320,1754154638682,-500.0,0.00024092,2]
[376891321,1754154638692,-500.0,0.00024092,2]
[376891322,1754154638701,-500.0,0.00024092,2]
[376891323,1754154638710,-228.45413923,0.00024092,2]
[376891324,1754154638719,-151.0,0.00024092,2]
[376891325,1754154638729,-151.0,0.00024092,2]
[376891326,1754154638738,-151.0,0.00024092,2]
[376891327,1754154638747,-151.0,0.00024092,2]
[376891328,1754154638757,-151.0,0.00024092,2]
[376891329,1754154638766,-151.0,0.00024092,2]
[376891330,1754154638776,-151.0,0.00024092,2]
[376891331,1754154638788,-675.29,0.00024097,10]
[376891332,1754154638797,-634.82,0.00024097,10]
[376891333,1754154638807,-529.02,0.00024097,10]
[376891334,1754154638816,-537.03538783,0.00024106,2]
[376891336,1754154638826,-500.0,0.00024106,2]
[376891337,1754154638836,-500.0,0.00024106,2]
[376891340,1754154638845,-500.0,0.00024106,2]
[376891342,1754154638855,-407.03366053,0.00024106,2]
[376891344,1754154638864,-500.0,0.00024106,2]
[376891346,1754154638874,-500.0,0.00024106,2]
[376891348,1754154638883,-349.10689096,0.00024106,2]
[376891350,1754154638892,-500.0,0.00024106,2]
[376891352,1754154638901,-500.0,0.00024106,2]
[376891354,1754154638911,-392.36839204,0.00024106,2]
[376891356,1754154638920,-500.0,0.00024106,2]
[376891358,1754154638929,-500.0,0.00024106,2]
[376891360,1754154638938,-500.0,0.00024106,2]
[376891362,1754154638947,-500.0,0.00024106,2]
[376891364,1754154638956,-500.0,0.00024106,2]
[376891366,1754154638966,-611.64257825,0.00024106,2]
[376891368,1754154638975,-500.0,0.00024106,2]
[376891370,1754154638984,-11159.35,0.00024106,2]
[376891372,1754154638993,-88984.05722498,0.00024107,2]
[376891374,1754154639003,-236.46206706,0.00024173,2]
[376891376,1754154639012,-1106.75,0.000242,7]
[376891393,1754154639136,-150.0,0.00024206,2]
[376891396,1754154639180,-200.0,0.00024247,15]
[376891398,1754154639191,-300.0,0.00024247,15]
[376891400,1754154639207,-12646.87439643,0.00024628,2]
[376891402,1754154639216,-215.0795835,0.00024628,2]
[376891404,1754154639226,-500.0,0.00024899,2]
[376891406,1754154639235,-1237.53633716,0.000249,2]
[376891408,1754154639244,-152.18,0.00024981,7]
[376891410,1754154639253,-226.23,0.00025047,2]
[376891412,1754154639262,-300.0,0.00025065,2]
[376891413,1754154639271,-420.0,0.00025065,2]
[376891415,1754154639281,-152.18,0.00025081,7]
[376891417,1754154639290,-794.5,0.00025083,6]
[376891419,1754154639300,-152.18,0.00025181,7]
[376891421,1754154639309,-1087.0,0.00025182,2]
[376891423,1754154639318,-152.18,0.00025281,7]
[376891425,1754154639327,-500.0,0.00025297,2]
[376891427,1754154639336,-273.38258885,0.00025297,2]
[376891429,1754154639345,-794.5,0.00025298,6]
[376891431,1754154639354,-152.18,0.00025381,7]
[376891433,1754154639363,-11159.35,0.00025476,4]
[376891435,1754154639372,-152.18,0.00025481,7]
[376891437,1754154639381,-794.5,0.00025514,6]
[376891439,1754154639391,-618.76816858,0.00025555,2]
[376891441,1754154639399,-152.18,0.00025581,7]
[376891443,1754154639409,-500.0,0.00025625,2]
[376891445,1754154639418,-152.18,0.00025681,7]
[376891446,1754154639427,-794.5,0.00025729,6]
[376891447,1754154639436,-152.18,0.00025781,7]
[376891448,1754154639445,-152.18,0.00025881,7]
[376891449,1754154639454,-794.5,0.00025945,6]
[376891450,1754154639463,-152.18,0.00025981,7]
[376891451,1754154639473,-500.0,0.00025995,2]
[376891452,1754154639482,-166.527966,0.00026027,2]
[376891453,1754154639491,-609.93450564,0.00026043,2]
[376891454,1754154639501,-152.18,0.00026081,7]
[376891455,1754154639510,-1106.75,0.000261,7]
[376891456,1754154639521,-794.5,0.0002616,6]
[376891457,1754154639532,-152.18,0.00026181,7]
[376891458,1754154639541,-152.18,0.00026281,7]
[376891459,1754154639550,-794.5,0.00026376,7]
[376891460,1754154639559,-152.18,0.00026381,7]
[376891461,1754154639568,-152.18,0.00026481,7]
[376891462,1754154639578,-152.2,0.00026581,7]
[376891463,1754154639587,-794.5,0.00026592,7]
[376891464,1754154639596,-200.0,0.00026601,15]
[376891465,1754154639605,-200.0,0.00026601,15]
[376891466,1754154639615,-300.0,0.00026601,15]
[376891467,1754154639624,-865.66844585,0.00026613,2]
[376891468,1754154639633,-560.9716793,0.0002668,2]
[376891469,1754154639650,-172.05194334,0.00026749,2]
[376891470,1754154639668,-4002.86637828,0.00026749,2]
[376891471,1754154639682,-227.88,0.00026749,4]
[376891472,1754154639693,-177.24656797,0.00026749,4]
[376891473,1754154639702,-177.24656797,0.00026749,4]
[376891474,1754154639711,-175.78910074,0.00026749,4]
[376891475,1754154639720,-175.78910074,0.00026749,4]
[376891476,1754154639729,-175.78910074,0.00026749,4]
[376891477,1754154639738,-175.78,0.00026749,4]
[376891478,1754154639748,-164.06982735,0.00026749,4]
[376891479,1754154639757,-164.06982735,0.00026749,4]
[376891480,1754154639766,-164.06982735,0.00026749,4]
[376891481,1754154639776,-164.06982735,0.00026749,4]
[376891482,1754154639789,-164.06982735,0.00026749,4]
[376891483,1754154639799,-164.06982735,0.00026749,4]
[376891484,1754154639808,-164.06982735,0.00026749,4]
[376891485,1754154639817,-164.06982735,0.00026749,4]
[376891486,1754154639828,-164.06982735,0.00026749,4]
[376891487,1754154639838,-635.0,0.00026756,2]
[376891488,1754154639847,-407.0,0.00026756,2]
[376891489,1754154639856,-800.0,0.00026794,2]
[376891490,1754154639866,-151.0,0.000268,11]
[376891491,1754154639875,-794.5,0.00026807,7]
[376891492,1754154639884,-10519.0588659,0.00026839,2]
[376891493,1754154639894,-11159.35,0.00026846,6]
[376891494,1754154639903,-457.13801632,0.00026848,2]
[376891495,1754154639912,-186.100072,0.00026849,7]
[376891496,1754154639921,-151.0,0.00026849,7]
[376891497,1754154639930,-151.0,0.00026849,7]
[376891498,1754154639940,-151.0,0.00026849,7]
[376891499,1754154639949,-151.0,0.00026849,7]
[376891500,1754154639958,-213.220952,0.00026849,7]
[376891501,1754154639967,-460.0,0.00026849,10]
[376891502,1754154639977,-460.0,0.00026849,10]
[376891503,1754154639986,-251.24927971,0.00026849,10]
[376891504,1754154639996,-460.0,0.00026849,10]
[376891505,1754154640005,-460.0,0.00026849,10]
[376891506,1754154640014,-306.51938433,0.00026849,10]
[376891507,1754154640024,-151.0,0.00026849,7]
[376891508,1754154640033,-151.0,0.00026849,7]
[376891509,1754154640042,-151.0,0.00026849,7]
[376891510,1754154640051,-151.0,0.00026849,7]
[376891511,1754154640060,-151.0,0.00026849,7]
[376891512,1754154640070,-151.0,0.00026849,7]
[376891513,1754154640079,-151.0,0.00026849,7]
[376891514,1754154640088,-151.0,0.00026849,7]
[376891516,1754154640098,-151.0,0.00026849,7]
[376891517,1754154640107,-151.0,0.00026849,7]
[376891518,1754154640117,-151.0,0.00026849,7]
[376891519,1754154640126,-151.0,0.00026849,7]
[376891521,1754154640136,-151.0,0.00026849,7]
[376891523,1754154640146,-151.0,0.00026849,7]
[376891525,1754154640155,-151.0,0.00026849,7]
[376891526,1754154640165,-151.0,0.00026849,7]
[376891527,1754154640174,-151.0,0.00026849,7]
[376891528,1754154640183,-151.0,0.00026849,7]
[376891529,1754154640193,-151.0,0.00026849,7]
[376891530,1754154640202,-151.0,0.00026849,7]
[376891532,1754154640212,-221.685812,0.00026849,7]
[376891535,1754154640221,-460.0,0.00026849,10]
[376891536,1754154640231,-463.80589827,0.00026849,10]
[376891538,1754154640240,-152.013099,0.00026849,7]
[376891540,1754154640250,-460.0,0.00026849,10]
[376891542,1754154640260,-460.0,0.00026849,10]
[376891545,1754154640269,-460.0,0.00026849,10]
[376891549,1754154640279,-460.0,0.00026849,10]
[376891552,1754154640288,-460.0,0.00026849,10]
[376891555,1754154640297,-460.0,0.00026849,10]
[376891558,1754154640307,-460.0,0.00026849,10]
[376891561,1754154640316,-460.0,0.00026849,10]
[376891564,1754154640326,-460.0,0.00026849,10]
[376891567,1754154640336,-460.0,0.00026849,10]
[376891570,1754154640345,-460.0,0.00026849,10]
[376891573,1754154640355,-460.0,0.00026849,10]
[376891575,1754154640364,-460.0,0.00026849,10]
[376891576,1754154640373,-460.0,0.00026849,10]
[376891577,1754154640383,-460.0,0.00026849,10]
[376891578,1754154640392,-460.0,0.00026849,10]
[376891579,1754154640402,-460.0,0.00026849,10]
[376891580,1754154640412,-460.0,0.00026849,10]
[376891581,1754154640421,-521.89005842,0.00026849,10]
[376891583,1754154640431,-151.0,0.00026849,7]
[376891584,1754154640441,-151.0,0.00026849,7]
[376891585,1754154640450,-151.0,0.00026849,7]
[376891586,1754154640459,-460.0,0.00026849,10]
[376891587,1754154640468,-460.0,0.00026849,10]
[376891588,1754154640477,-460.0,0.00026849,10]
[376891589,1754154640486,-460.0,0.00026849,10]
[376891590,1754154640496,-460.0,0.00026849,10]
[376891591,1754154640506,-460.0,0.00026849,10]
[376891592,1754154640515,-460.0,0.00026849,10]
[376891593,1754154640525,-460.0,0.00026849,10]
[376891594,1754154640535,-305.53855911,0.00026849,10]
[376891595,1754154640544,-460.0,0.00026849,10]
[376891596,1754154640553,-460.0,0.00026849,10]
[376891597,1754154640564,-460.0,0.00026849,10]
[376891598,1754154640573,-151.0,0.00026849,7]
[376891599,1754154640582,-460.0,0.00026849,10]
[376891600,1754154640593,-460.0,0.00026849,10]
[376891601,1754154640602,-151.0,0.00026849,7]
[376891602,1754154640612,-460.0,0.00026849,10]
[376891603,1754154640622,-264.224352,0.00026849,7]
[376891604,1754154640633,-460.0,0.00026849,10]
[376891605,1754154640643,-460.0,0.00026849,10]
[376891606,1754154640654,-460.0,0.00026849,10]
[376891607,1754154640667,-151.0,0.00026849,7]
[376891608,1754154640680,-151.0,0.00026849,7]
[376891609,1754154640693,-151.0,0.00026849,7]
[376891610,1754154640705,-151.0,0.00026849,7]
[376891611,1754154640717,-151.0,0.00026849,7]
[376891612,1754154640728,-151.0,0.00026849,7]
[376891613,1754154640739,-461.99394899,0.00026849,10]
[376891614,1754154640750,-151.0,0.00026849,7]
[376891615,1754154640761,-151.0,0.00026849,7]
[376891616,1754154640774,-151.0,0.00026849,7]
[376891617,1754154640788,-151.0,0.00026849,7]
[376891618,1754154640800,-151.0,0.00026849,7]
[376891619,1754154640812,-151.0,0.00026849,7]
[376891620,1754154640825,-151.0,0.00026849,7]
[376891621,1754154640837,-460.0,0.00026849,10]
[376891622,1754154640849,-462.79781127,0.00026849,10]
[376891623,1754154640862,-460.0,0.00026849,10]
[376891624,1754154640874,-460.0,0.00026849,10]
[376891625,1754154640887,-460.0,0.00026849,10]
[376891626,1754154640899,-461.01869725,0.00026849,10]
[376891627,1754154640910,-460.0,0.00026849,10]
[376891628,1754154640921,-460.0,0.00026849,10]
[376891629,1754154640932,-460.0,0.00026849,10]
[376891630,1754154640947,-151.0,0.00026849,7]
[376891631,1754154640959,-151.0,0.00026849,7]
[376891633,1754154640970,-151.0,0.00026849,7]
[376891634,1754154640982,-151.0,0.00026849,7]
[376891635,1754154640993,-151.0,0.00026849,7]
[376891636,1754154641005,-151.0,0.00026849,7]
[376891637,1754154641016,-151.0,0.00026849,7]
[376891638,1754154641028,-151.0,0.00026849,7]
[376891639,1754154641038,-151.0,0.00026849,7]
[376891640,1754154641048,-461.28254996,0.00026849,10]
[376891641,1754154641059,-151.0,0.00026849,7]
[376891642,1754154641072,-151.0,0.00026849,7]
[376891643,1754154641083,-151.0,0.00026849,7]
[376891644,1754154641094,-151.0,0.00026849,7]
[376891645,1754154641105,-460.0,0.00026849,10]
[376891646,1754154641117,-151.0,0.00026849,7]
[376891647,1754154641129,-460.0,0.00026849,10]
[376891648,1754154641142,-151.0,0.00026849,7]
[376891649,1754154641154,-151.0,0.00026849,7]
[376891650,1754154641165,-460.0,0.00026849,10]
[376891651,1754154641178,-151.0,0.00026849,7]
[376891652,1754154641191,-460.0,0.00026849,10]
[376891654,1754154641204,-460.0,0.00026849,10]
[376891655,1754154641216,-460.0,0.00026849,10]
[376891656,1754154641226,-460.0,0.00026849,10]
[376891657,1754154641236,-460.0,0.00026849,10]
[376891658,1754154641246,-460.0,0.00026849,10]
[376891659,1754154641256,-460.0,0.00026849,10]
[376891661,1754154641267,-460.0,0.00026849,10]
[376891663,1754154641278,-460.0,0.00026849,10]
[376891666,1754154641289,-460.0,0.00026849,10]
[376891668,1754154641302,-275.42816555,0.00026849,10]
[376891670,1754154641314,-300.0,0.00026849,10]
[376891673,1754154641326,-151.0,0.00026849,7]
[376891675,1754154641336,-216.67103937,0.00026849,10]
[376891677,1754154641347,-151.0,0.00026849,7]
[376891679,1754154641358,-151.0,0.00026849,7]
[376891681,1754154641368,-151.0,0.00026849,7]